[Event "Titled Tuesday Blitz February 15 Late 2022"]
[White "Antolak, Julia"]
[Black "Wartiovaara, Oliver"]
[WhiteFideId "1159569"]
[BlackFideId "513024"]
[WhiteElo "2104"]
[BlackElo "1971"]
[Result "1-0"]
[Round "09"]
[TimeControl "180+1"]
[Date "2022.02.16"]
[WhiteClock "0:00:14"]
[BlackClock "0:00:01"]

1. e4 {[%clk 0:03:00]}  c5 {[%clk 0:02:59]} 2. Nf3 {[%clk 0:03:00]}  d6 {[%clk 0:02:59]} 3. d4 {[%clk 0:03:00]}  cxd4 {[%clk 0:03:00]} 4. Nxd4 {[%clk 0:03:01]}  Nf6 {[%clk 0:03:00]} 5. Nc3 {[%clk 0:03:01]}  a6 {[%clk 0:03:00]} 6. Nb3 {[%clk 0:03:02]}  e6 {[%clk 0:02:55]} 7. g4 {[%clk 0:03:00]}  d5 {[%clk 0:02:47]} 8. e5 {[%clk 0:02:47]}  Nfd7 {[%clk 0:02:45]} 9. Qe2 {[%clk 0:02:41]}  Be7 {[%clk 0:02:35]} 10. Bd2 {[%clk 0:02:40]}  Nc6 {[%clk 0:02:35]} 11. O-O-O {[%clk 0:02:34]}  Ndxe5 {[%clk 0:02:28]} 12. f4 {[%clk 0:02:34]}  Nc4 {[%clk 0:02:20]} 13. Be1 {[%clk 0:02:34]}  b5 {[%clk 0:02:07]} 14. Bg2 {[%clk 0:02:31]}  O-O {[%clk 0:02:04]} 15. Bg3 {[%clk 0:02:13]}  Bf6 {[%clk 0:01:39]} 16. Qf3 {[%clk 0:01:45]}  Nxb2 {[%clk 0:01:39]} 17. Kxb2 {[%clk 0:01:44]}  b4 {[%clk 0:01:39]} 18. Kc1 {[%clk 0:01:36]}  Bxc3 {[%clk 0:01:30]} 19. f5 {[%clk 0:01:35]}  Ne5 {[%clk 0:01:02]} 20. Qf4 {[%clk 0:01:21]}  Bd7 {[%clk 0:01:01]} 21. Rhf1 {[%clk 0:01:09]}  Bb5 {[%clk 0:00:36]} 22. Rf2 {[%clk 0:01:04]}  a5 {[%clk 0:00:25]} 23. Nd4 {[%clk 0:00:59]}  Bd7 {[%clk 0:00:19]} 24. Qxe5 {[%clk 0:00:57]}  Qf6 {[%clk 0:00:17]} 25. Qxf6 {[%clk 0:00:57]}  gxf6 {[%clk 0:00:18]} 26. fxe6 {[%clk 0:00:56]}  fxe6 {[%clk 0:00:18]} 27. Nb3 {[%clk 0:00:46]}  a4 {[%clk 0:00:18]} 28. Nc5 {[%clk 0:00:46]}  Bc8 {[%clk 0:00:16]} 29. Nd3 {[%clk 0:00:40]}  Ba6 {[%clk 0:00:15]} 30. Rdf1 {[%clk 0:00:39]}  Bc4 {[%clk 0:00:13]} 31. Bf4 {[%clk 0:00:31]}  Bxa2 {[%clk 0:00:11]} 32. Bd2 {[%clk 0:00:31]}  Kg7 {[%clk 0:00:06]} 33. Nxb4 {[%clk 0:00:28]}  Bxd2+ {[%clk 0:00:05]} 34. Kxd2 {[%clk 0:00:28]}  Bc4 {[%clk 0:00:06]} 35. Nd3 {[%clk 0:00:26]}  a3 {[%clk 0:00:06]} 36. Ra1 {[%clk 0:00:26]}  a2 {[%clk 0:00:06]} 37. Rff1 {[%clk 0:00:26]}  Rfb8 {[%clk 0:00:05]} 38. Rfe1 {[%clk 0:00:24]}  Rb6 {[%clk 0:00:04]} 39. Nc5 {[%clk 0:00:23]}  Kf7 {[%clk 0:00:03]} 40. Re3 {[%clk 0:00:20]}  Rab8 {[%clk 0:00:03]} 41. Nb3 {[%clk 0:00:20]}  Bxb3 {[%clk 0:00:02]} 42. cxb3 {[%clk 0:00:20]}  Rxb3 {[%clk 0:00:03]} 43. Rxb3 {[%clk 0:00:20]}  Rxb3 {[%clk 0:00:04]} 44. Rxa2 {[%clk 0:00:21]}  Kg6 {[%clk 0:00:02]} 45. Ke2 {[%clk 0:00:20]}  Rb4 {[%clk 0:00:02]} 46. h3 {[%clk 0:00:20]}  h5 {[%clk 0:00:03]} 47. gxh5+ {[%clk 0:00:17]}  Kxh5 {[%clk 0:00:03]} 48. Kf2 {[%clk 0:00:18]}  Kg5 {[%clk 0:00:04]} 49. Bf3 {[%clk 0:00:17]}  Rf4 {[%clk 0:00:04]} 50. Kg3 {[%clk 0:00:18]}  d4 {[%clk 0:00:03]} 51. Rg2 {[%clk 0:00:18]}  e5 {[%clk 0:00:03]} 52. Kf2+ {[%clk 0:00:17]}  Kh6 {[%clk 0:00:03]} 53. Ke2 {[%clk 0:00:17]}  f5 {[%clk 0:00:02]} 54. Bd5 {[%clk 0:00:16]}  e4 {[%clk 0:00:02]} 55. Be6 {[%clk 0:00:16]}  Rf3 {[%clk 0:00:02]} 56. h4 {[%clk 0:00:15]}  Kh5 {[%clk 0:00:02]} 57. Rh2 {[%clk 0:00:13]}  Rf4 {[%clk 0:00:01]} 58. Bf7+ {[%clk 0:00:13]}  Kh6 {[%clk 0:00:01]} 59. h5 {[%clk 0:00:14]} 1-0


[Site "https://www.chess.com"]

[Event "Titled Tuesday Blitz February 15 Late 2022"]
[White "Arabidze, Meri"]
[Black "Vusatiuk, Vladimir"]
[WhiteFideId "13604040"]
[BlackFideId "14118610"]
[WhiteElo "2329"]
[BlackElo "2157"]
[Result "0-1"]
[Round "09"]
[TimeControl "180+1"]
[Date "2022.02.15"]
[WhiteClock "0:00:02"]
[BlackClock "0:00:09"]

1. d4 {[%clk 0:02:57]}  Nf6 {[%clk 0:02:58]} 2. Nf3 {[%clk 0:02:58]}  e6 {[%clk 0:02:49]} 3. g3 {[%clk 0:02:58]}  b5 {[%clk 0:02:47]} 4. e3 {[%clk 0:02:55]}  a6 {[%clk 0:02:34]} 5. Bg2 {[%clk 0:02:55]}  Bb7 {[%clk 0:02:34]} 6. O-O {[%clk 0:02:55]}  Be7 {[%clk 0:02:30]} 7. b3 {[%clk 0:02:56]}  O-O {[%clk 0:02:27]} 8. c4 {[%clk 0:02:56]}  c5 {[%clk 0:02:21]} 9. Bb2 {[%clk 0:02:48]}  cxd4 {[%clk 0:01:58]} 10. exd4 {[%clk 0:02:48]}  d6 {[%clk 0:01:55]} 11. Nc3 {[%clk 0:02:46]}  bxc4 {[%clk 0:01:51]} 12. bxc4 {[%clk 0:02:47]}  Qc7 {[%clk 0:01:49]} 13. Qe2 {[%clk 0:02:02]}  Nbd7 {[%clk 0:01:47]} 14. Rac1 {[%clk 0:02:00]}  Rac8 {[%clk 0:01:45]} 15. Nb1 {[%clk 0:01:56]}  Nb6 {[%clk 0:01:16]} 16. Nbd2 {[%clk 0:01:53]}  a5 {[%clk 0:01:16]} 17. c5 {[%clk 0:01:46]}  dxc5 {[%clk 0:01:13]} 18. dxc5 {[%clk 0:01:47]}  Na4 {[%clk 0:01:08]} 19. Be5 {[%clk 0:01:45]}  Qd7 {[%clk 0:01:02]} 20. Nc4 {[%clk 0:01:30]}  Rxc5 {[%clk 0:00:57]} 21. Rfd1 {[%clk 0:01:27]}  Bd5 {[%clk 0:00:51]} 22. Ne3 {[%clk 0:01:22]}  Rxc1 {[%clk 0:00:50]} 23. Rxc1 {[%clk 0:01:23]}  Rc8 {[%clk 0:00:43]} 24. Rd1 {[%clk 0:01:15]}  Nc3 {[%clk 0:00:37]} 25. Bxc3 {[%clk 0:01:14]}  Rxc3 {[%clk 0:00:38]} 26. Ne5 {[%clk 0:01:07]}  Qb7 {[%clk 0:00:33]} 27. Nxd5 {[%clk 0:01:05]}  Nxd5 {[%clk 0:00:32]} 28. Qh5 {[%clk 0:00:47]}  g6 {[%clk 0:00:30]} 29. Qg4 {[%clk 0:00:46]}  Bf6 {[%clk 0:00:25]} 30. Nd3 {[%clk 0:00:34]}  Qb5 {[%clk 0:00:19]} 31. Nf4 {[%clk 0:00:30]}  Nxf4 {[%clk 0:00:19]} 32. Qxf4 {[%clk 0:00:31]}  Kg7 {[%clk 0:00:19]} 33. h4 {[%clk 0:00:29]}  Qb2 {[%clk 0:00:19]} 34. a4 {[%clk 0:00:24]}  Qb4 {[%clk 0:00:18]} 35. Qxb4 {[%clk 0:00:17]}  axb4 {[%clk 0:00:19]} 36. Rb1 {[%clk 0:00:16]}  b3 {[%clk 0:00:19]} 37. a5 {[%clk 0:00:16]}  b2 {[%clk 0:00:19]} 38. Be4 {[%clk 0:00:11]}  Ra3 {[%clk 0:00:19]} 39. g4 {[%clk 0:00:08]}  Rxa5 {[%clk 0:00:16]} 40. g5 {[%clk 0:00:08]}  Bd4 {[%clk 0:00:17]} 41. Kg2 {[%clk 0:00:08]}  h6 {[%clk 0:00:17]} 42. f4 {[%clk 0:00:07]}  hxg5 {[%clk 0:00:16]} 43. hxg5 {[%clk 0:00:08]}  Ra3 {[%clk 0:00:15]} 44. Rd1 {[%clk 0:00:06]}  Be3 {[%clk 0:00:12]} 45. Rd7 {[%clk 0:00:03]}  Bxf4 {[%clk 0:00:10]} 46. Rb7 {[%clk 0:00:04]}  Bc1 {[%clk 0:00:09]} 47. Bc6 {[%clk 0:00:02]}  Ra5 {[%clk 0:00:08]} 48. Be8 {[%clk 0:00:02]}  Rxg5+ {[%clk 0:00:09]} 49. Kf3 {[%clk 0:00:01]}  Rf5+ {[%clk 0:00:10]} 50. Ke4 {[%clk 0:00:02]}  Rf4+ {[%clk 0:00:09]} 51. Kd3 {[%clk 0:00:02]}  g5 {[%clk 0:00:09]} 52. Kc2 {[%clk 0:00:02]}  g4 {[%clk 0:00:10]} 53. Bd7 {[%clk 0:00:03]}  Kf6 {[%clk 0:00:10]} 54. Be8 {[%clk 0:00:03]}  Kg6 {[%clk 0:00:09]} 55. Kb1 {[%clk 0:00:01]}  g3 {[%clk 0:00:09]} 56. Rb3 {[%clk 0:00:02]}  Rg4 {[%clk 0:00:09]} 57. Bc6 {[%clk 0:00:02]}  g2 {[%clk 0:00:09]} 58. Bxg2 {[%clk 0:00:02]}  Rxg2 {[%clk 0:00:09]} 59. Ra3 {[%clk 0:00:02]}  f5 {[%clk 0:00:08]} 60. Ra6 {[%clk 0:00:02]}  Kf6 {[%clk 0:00:09]} 61. Ra3 {[%clk 0:00:02]}  f4 {[%clk 0:00:09]} 62. Rf3 {[%clk 0:00:02]}  e5 {[%clk 0:00:10]} 63. Ka2 {[%clk 0:00:02]}  Kf5 {[%clk 0:00:10]} 64. Rf1 {[%clk 0:00:02]}  b1=Q+ {[%clk 0:00:08]} 65. Kxb1 {[%clk 0:00:02]}  Be3 {[%clk 0:00:09]} 66. Rd1 {[%clk 0:00:02]}  f3 {[%clk 0:00:09]} 67. Ka1 {[%clk 0:00:02]}  Rg1 {[%clk 0:00:09]} 0-1


[Site "https://www.chess.com"]

[Event "Titled Tuesday Blitz February 15 Late 2022"]
[White "Bluebaum, Matthias"]
[Black "Andreikin, Dmitry"]
[WhiteFideId "24651516"]
[BlackFideId "4158814"]
[WhiteElo "2550"]
[BlackElo "2736"]
[Result "1-0"]
[Round "09"]
[TimeControl "180+1"]
[Date "2022.02.15"]
[WhiteClock "0:01:12"]
[BlackClock "0:00:01"]

1. d4 {[%clk 0:03:00]}  g6 {[%clk 0:02:58]} 2. c4 {[%clk 0:03:01]}  Bg7 {[%clk 0:02:58]} 3. e4 {[%clk 0:03:02]}  e6 {[%clk 0:02:58]} 4. Nc3 {[%clk 0:03:01]}  Ne7 {[%clk 0:02:59]} 5. Nf3 {[%clk 0:03:01]}  O-O {[%clk 0:02:59]} 6. h4 {[%clk 0:03:01]}  d5 {[%clk 0:02:59]} 7. e5 {[%clk 0:03:00]}  c5 {[%clk 0:02:57]} 8. dxc5 {[%clk 0:02:42]}  Nbc6 {[%clk 0:02:55]} 9. Bf4 {[%clk 0:02:36]}  Qa5 {[%clk 0:02:46]} 10. Qd2 {[%clk 0:02:36]}  Qxc5 {[%clk 0:02:16]} 11. h5 {[%clk 0:02:34]}  dxc4 {[%clk 0:01:49]} 12. O-O-O {[%clk 0:01:59]}  Nd5 {[%clk 0:01:18]} 13. Bh6 {[%clk 0:01:48]}  Nxc3 {[%clk 0:01:02]} 14. Bxg7 {[%clk 0:01:47]}  Nxa2+ {[%clk 0:00:50]} 15. Kb1 {[%clk 0:01:47]}  c3 {[%clk 0:00:28]} 16. Bxf8 {[%clk 0:01:46]}  Kxf8 {[%clk 0:00:25]} 17. Qd6+ {[%clk 0:01:39]}  Qxd6 {[%clk 0:00:25]} 18. exd6 {[%clk 0:01:40]}  Ncb4 {[%clk 0:00:17]} 19. Nd4 {[%clk 0:01:26]}  Bd7 {[%clk 0:00:12]} 20. Bc4 {[%clk 0:01:25]}  Ba4 {[%clk 0:00:04]} 21. Bxa2 {[%clk 0:01:24]}  c2+ {[%clk 0:00:04]} 22. Nxc2 {[%clk 0:01:15]}  Bxc2+ {[%clk 0:00:04]} 23. Ka1 {[%clk 0:01:16]}  Bxd1 {[%clk 0:00:05]} 24. hxg6 {[%clk 0:01:16]}  fxg6 {[%clk 0:00:03]} 25. Bxe6 {[%clk 0:01:16]}  Bc2 {[%clk 0:00:02]} 26. Rxh7 {[%clk 0:01:16]}  Re8 {[%clk 0:00:01]} 27. Rh8+ {[%clk 0:01:11]}  Kg7 {[%clk 0:00:01]} 28. Rxe8 {[%clk 0:01:12]} 1-0


[Site "https://www.chess.com"]

[Event "Titled Tuesday Blitz February 15 Late 2022"]
[White "Bugayev, Vladimir"]
[Black "Antonio, Jorge Carlos"]
[WhiteFideId "30901480"]
[BlackFideId "113190"]
[WhiteElo "2398"]
[BlackElo "2247"]
[Result "1-0"]
[Round "09"]
[TimeControl "180+1"]
[Date "2022.02.16"]
[WhiteClock "0:00:12"]
[BlackClock "0:00:05"]

1. e4 {[%clk 0:02:58]}  c5 {[%clk 0:02:59]} 2. Nc3 {[%clk 0:02:57]}  e6 {[%clk 0:02:59]} 3. f4 {[%clk 0:02:57]}  Nc6 {[%clk 0:02:59]} 4. Nf3 {[%clk 0:02:57]}  d6 {[%clk 0:02:59]} 5. Bb5 {[%clk 0:02:49]}  Qc7 {[%clk 0:02:58]} 6. d4 {[%clk 0:02:39]}  a6 {[%clk 0:02:52]} 7. Bxc6+ {[%clk 0:02:32]}  Qxc6 {[%clk 0:02:51]} 8. d5 {[%clk 0:02:33]}  Qc7 {[%clk 0:02:49]} 9. O-O {[%clk 0:02:30]}  g6 {[%clk 0:02:43]} 10. f5 {[%clk 0:02:17]}  exf5 {[%clk 0:02:40]} 11. exf5 {[%clk 0:02:15]}  Bxf5 {[%clk 0:02:40]} 12. Ng5 {[%clk 0:02:15]}  h6 {[%clk 0:02:33]} 13. g4 {[%clk 0:02:15]}  hxg5 {[%clk 0:02:32]} 14. gxf5 {[%clk 0:02:15]}  Bg7 {[%clk 0:02:21]} 15. fxg6 {[%clk 0:02:10]}  Bd4+ {[%clk 0:02:19]} 16. Kh1 {[%clk 0:02:08]}  f6 {[%clk 0:02:16]} 17. Qe2+ {[%clk 0:02:02]}  Be5 {[%clk 0:02:13]} 18. Rf2 {[%clk 0:01:56]}  Qg7 {[%clk 0:02:06]} 19. Ne4 {[%clk 0:01:55]}  O-O-O {[%clk 0:02:04]} 20. Qg4+ {[%clk 0:01:53]}  Kb8 {[%clk 0:02:01]} 21. Qe6 {[%clk 0:01:37]}  Ne7 {[%clk 0:01:57]} 22. Bxg5 {[%clk 0:01:29]}  fxg5 {[%clk 0:01:48]} 23. Rf7 {[%clk 0:01:28]}  Qh6 {[%clk 0:01:45]} 24. h3 {[%clk 0:01:21]}  Qxh3+ {[%clk 0:01:38]} 25. Qxh3 {[%clk 0:01:19]}  Rxh3+ {[%clk 0:01:38]} 26. Kg2 {[%clk 0:01:20]}  Rh2+ {[%clk 0:01:38]} 27. Kf3 {[%clk 0:01:20]}  Nxg6 {[%clk 0:01:37]} 28. Nxg5 {[%clk 0:01:13]}  Rf8 {[%clk 0:01:27]} 29. Rg1 {[%clk 0:01:08]}  Rxf7+ {[%clk 0:01:19]} 30. Nxf7 {[%clk 0:01:08]}  Nh4+ {[%clk 0:01:18]} 31. Ke4 {[%clk 0:01:05]}  Rxc2 {[%clk 0:01:12]} 32. Nxe5 {[%clk 0:01:05]}  dxe5 {[%clk 0:01:10]} 33. d6 {[%clk 0:01:06]}  Rxb2 {[%clk 0:01:07]} 34. Rg8+ {[%clk 0:01:05]}  Ka7 {[%clk 0:01:07]} 35. d7 {[%clk 0:01:06]}  Rd2 {[%clk 0:01:01]} 36. d8=Q {[%clk 0:01:06]}  Rxd8 {[%clk 0:01:01]} 37. Rxd8 {[%clk 0:01:07]}  Ng6 {[%clk 0:00:55]} 38. Rd7 {[%clk 0:00:56]}  Nf8 {[%clk 0:00:46]} 39. Rf7 {[%clk 0:00:49]}  Ne6 {[%clk 0:00:45]} 40. Kxe5 {[%clk 0:00:48]}  Nd4 {[%clk 0:00:44]} 41. Kd5 {[%clk 0:00:47]}  Kb6 {[%clk 0:00:41]} 42. Kc4 {[%clk 0:00:46]}  Nc6 {[%clk 0:00:35]} 43. Rf6 {[%clk 0:00:41]}  a5 {[%clk 0:00:26]} 44. a4 {[%clk 0:00:41]}  Ka6 {[%clk 0:00:20]} 45. Kxc5 {[%clk 0:00:41]}  Ka7 {[%clk 0:00:19]} 46. Rh6 {[%clk 0:00:40]}  Ne7 {[%clk 0:00:14]} 47. Kb5 {[%clk 0:00:36]}  Nc6 {[%clk 0:00:14]} 48. Rh8 {[%clk 0:00:32]}  Nd4+ {[%clk 0:00:06]} 49. Kxa5 {[%clk 0:00:31]}  Nc6+ {[%clk 0:00:06]} 50. Kb5 {[%clk 0:00:31]}  Nd4+ {[%clk 0:00:06]} 51. Kc4 {[%clk 0:00:31]}  Nc6 {[%clk 0:00:06]} 52. Kc5 {[%clk 0:00:30]}  Ka6 {[%clk 0:00:06]} 53. Rh4 {[%clk 0:00:28]}  Na5 {[%clk 0:00:05]} 54. Rb4 {[%clk 0:00:22]}  Nc6 {[%clk 0:00:03]} 55. Rb5 {[%clk 0:00:19]}  Na5 {[%clk 0:00:02]} 56. Kb4 {[%clk 0:00:17]}  Nc6+ {[%clk 0:00:02]} 57. Ka3 {[%clk 0:00:17]}  Na5 {[%clk 0:00:03]} 58. Rh5 {[%clk 0:00:16]}  Nc6 {[%clk 0:00:04]} 59. Kb3 {[%clk 0:00:13]}  Na5+ {[%clk 0:00:03]} 60. Kc3 {[%clk 0:00:12]}  Nc6 {[%clk 0:00:04]} 61. Kc4 {[%clk 0:00:12]}  Kb6 {[%clk 0:00:05]} 62. Kc3 {[%clk 0:00:10]}  Ka6 {[%clk 0:00:06]} 63. Rh6 {[%clk 0:00:10]}  Kb6 {[%clk 0:00:07]} 64. Kc4 {[%clk 0:00:10]}  Kc7 {[%clk 0:00:07]} 65. Kb5 {[%clk 0:00:10]}  Nd4+ {[%clk 0:00:06]} 66. Kc5 {[%clk 0:00:10]}  Nb3+ {[%clk 0:00:05]} 67. Kc4 {[%clk 0:00:09]}  Na5+ {[%clk 0:00:05]} 68. Kb5 {[%clk 0:00:09]}  Nc6 {[%clk 0:00:06]} 69. Kc5 {[%clk 0:00:10]}  Na5 {[%clk 0:00:06]} 70. Rh7+ {[%clk 0:00:10]}  Kb8 {[%clk 0:00:05]} 71. Kb5 {[%clk 0:00:10]}  Nc6 {[%clk 0:00:05]} 72. Kb6 {[%clk 0:00:10]}  Nd8 {[%clk 0:00:04]} 73. Rh8 {[%clk 0:00:10]}  Kc8 {[%clk 0:00:05]} 74. Rxd8+ {[%clk 0:00:11]}  Kxd8 {[%clk 0:00:05]} 75. Kxb7 {[%clk 0:00:11]}  Kd7 {[%clk 0:00:05]} 76. a5 {[%clk 0:00:12]} 1-0


[Site "https://www.chess.com"]

[Event "Titled Tuesday Blitz February 15 Late 2022"]
[White "Cori T., Deysi"]
[Black "Golubenko, Valentina"]
[WhiteFideId "3801934"]
[BlackFideId "4501993"]
[WhiteElo "2350"]
[BlackElo "2164"]
[Result "1-0"]
[Round "09"]
[TimeControl "180+1"]
[Date "2022.02.16"]
[WhiteClock "0:00:35"]
[BlackClock "0:00:02"]

1. d4 {[%clk 0:03:00]}  g6 {[%clk 0:02:59]} 2. Nf3 {[%clk 0:03:00]}  Bg7 {[%clk 0:02:59]} 3. g3 {[%clk 0:03:01]}  c5 {[%clk 0:02:59]} 4. c3 {[%clk 0:03:01]}  cxd4 {[%clk 0:02:59]} 5. cxd4 {[%clk 0:03:01]}  d5 {[%clk 0:02:58]} 6. Bg2 {[%clk 0:03:02]}  Nf6 {[%clk 0:02:58]} 7. O-O {[%clk 0:03:02]}  O-O {[%clk 0:02:58]} 8. Nc3 {[%clk 0:03:02]}  Nc6 {[%clk 0:02:58]} 9. Ne5 {[%clk 0:03:02]}  Bf5 {[%clk 0:02:53]} 10. Bf4 {[%clk 0:03:00]}  Rc8 {[%clk 0:02:49]} 11. Rc1 {[%clk 0:02:59]}  Nh5 {[%clk 0:02:32]} 12. Nxd5 {[%clk 0:02:41]}  Nxf4 {[%clk 0:02:30]} 13. gxf4 {[%clk 0:02:38]}  Be6 {[%clk 0:02:04]} 14. Nxc6 {[%clk 0:02:34]}  bxc6 {[%clk 0:02:01]} 15. Nb4 {[%clk 0:02:34]}  Qxd4 {[%clk 0:01:28]} 16. Qxd4 {[%clk 0:02:33]}  Bxd4 {[%clk 0:01:27]} 17. Nxc6 {[%clk 0:02:33]}  Bf6 {[%clk 0:01:27]} 18. e4 {[%clk 0:02:30]}  Bxb2 {[%clk 0:01:12]} 19. Nxe7+ {[%clk 0:02:29]}  Kg7 {[%clk 0:01:13]} 20. Rxc8 {[%clk 0:01:23]}  Bxc8 {[%clk 0:01:09]} 21. Rb1 {[%clk 0:01:23]}  Ba3 {[%clk 0:01:03]} 22. Nxc8 {[%clk 0:01:18]}  Rxc8 {[%clk 0:01:03]} 23. Bf1 {[%clk 0:01:18]}  Rc2 {[%clk 0:00:55]} 24. Bd3 {[%clk 0:01:07]}  Rd2 {[%clk 0:00:49]} 25. Bc4 {[%clk 0:01:05]}  Bc5 {[%clk 0:00:48]} 26. Rb7 {[%clk 0:01:05]}  Rxf2 {[%clk 0:00:37]} 27. Rxf7+ {[%clk 0:01:05]}  Kh6 {[%clk 0:00:37]} 28. Kh1 {[%clk 0:01:02]}  Rc2 {[%clk 0:00:13]} 29. Bd5 {[%clk 0:01:01]}  Rc1+ {[%clk 0:00:11]} 30. Kg2 {[%clk 0:01:01]}  Rc2+ {[%clk 0:00:12]} 31. Kg3 {[%clk 0:00:59]}  Rc3+ {[%clk 0:00:09]} 32. Kg4 {[%clk 0:00:59]}  Rc2 {[%clk 0:00:09]} 33. h4 {[%clk 0:00:58]}  Rg2+ {[%clk 0:00:08]} 34. Kf3 {[%clk 0:00:59]}  Rf2+ {[%clk 0:00:08]} 35. Kg3 {[%clk 0:00:59]}  Rc2 {[%clk 0:00:07]} 36. Rd7 {[%clk 0:00:56]}  Rc3+ {[%clk 0:00:07]} 37. Kg4 {[%clk 0:00:57]}  Rc1 {[%clk 0:00:06]} 38. Bg8 {[%clk 0:00:56]}  Rg1+ {[%clk 0:00:06]} 39. Kf3 {[%clk 0:00:57]}  Rf1+ {[%clk 0:00:05]} 40. Kg2 {[%clk 0:00:56]}  Rf2+ {[%clk 0:00:05]} 41. Kg3 {[%clk 0:00:57]}  g5 {[%clk 0:00:03]} 42. hxg5+ {[%clk 0:00:34]}  Kg6 {[%clk 0:00:02]} 43. Bxh7+ {[%clk 0:00:34]}  Kh5 {[%clk 0:00:02]} 44. Bf5 {[%clk 0:00:35]} 1-0


[Site "https://www.chess.com"]

[Event "Titled Tuesday Blitz February 15 Late 2022"]
[White "Corrales Jimenez, Fidel"]
[Black "Jobava, Baadur"]
[WhiteFideId "3506690"]
[BlackFideId "13601520"]
[WhiteElo "2541"]
[BlackElo "2617"]
[Result "1/2-1/2"]
[Round "09"]
[TimeControl "180+1"]
[Date "2022.02.15"]
[WhiteClock "0:00:05"]
[BlackClock "0:00:04"]

1. d4 {[%clk 0:03:00]}  d5 {[%clk 0:02:56]} 2. c4 {[%clk 0:03:00]}  dxc4 {[%clk 0:02:57]} 3. e3 {[%clk 0:02:58]}  c5 {[%clk 0:02:55]} 4. Bxc4 {[%clk 0:02:56]}  Nf6 {[%clk 0:02:54]} 5. Nf3 {[%clk 0:02:56]}  cxd4 {[%clk 0:02:48]} 6. O-O {[%clk 0:02:56]}  e6 {[%clk 0:02:44]} 7. Qxd4 {[%clk 0:02:53]}  Be7 {[%clk 0:02:42]} 8. Qxd8+ {[%clk 0:02:47]}  Bxd8 {[%clk 0:02:39]} 9. a3 {[%clk 0:02:46]}  Nc6 {[%clk 0:02:38]} 10. b4 {[%clk 0:02:45]}  Nd7 {[%clk 0:02:30]} 11. Bb2 {[%clk 0:02:44]}  Nb6 {[%clk 0:02:26]} 12. Nbd2 {[%clk 0:02:43]}  f6 {[%clk 0:02:22]} 13. Bb3 {[%clk 0:02:40]}  e5 {[%clk 0:02:22]} 14. Ne4 {[%clk 0:02:38]}  Be7 {[%clk 0:02:22]} 15. Rac1 {[%clk 0:02:33]}  Bf5 {[%clk 0:02:15]} 16. Nfd2 {[%clk 0:02:31]}  Rd8 {[%clk 0:02:12]} 17. Rfd1 {[%clk 0:02:25]}  h5 {[%clk 0:02:00]} 18. h4 {[%clk 0:02:14]}  Bg4 {[%clk 0:01:54]} 19. f3 {[%clk 0:02:13]}  Bf5 {[%clk 0:01:54]} 20. Kf2 {[%clk 0:02:01]}  Bg6 {[%clk 0:01:54]} 21. Nc5 {[%clk 0:01:41]}  Bxc5 {[%clk 0:01:54]} 22. Rxc5 {[%clk 0:01:42]}  Bf7 {[%clk 0:01:51]} 23. Bc2 {[%clk 0:01:36]}  Ke7 {[%clk 0:01:50]} 24. b5 {[%clk 0:01:32]}  Nb8 {[%clk 0:01:42]} 25. a4 {[%clk 0:01:32]}  Be6 {[%clk 0:01:27]} 26. Bg6 {[%clk 0:01:17]}  Nxa4 {[%clk 0:01:21]} 27. Rc7+ {[%clk 0:01:17]}  Rd7 {[%clk 0:01:13]} 28. Ba3+ {[%clk 0:01:13]}  Kd8 {[%clk 0:01:13]} 29. Rxd7+ {[%clk 0:01:13]}  Nxd7 {[%clk 0:01:14]} 30. Ne4 {[%clk 0:01:13]}  b6 {[%clk 0:01:03]} 31. f4 {[%clk 0:01:13]}  exf4 {[%clk 0:01:01]} 32. exf4 {[%clk 0:01:14]}  Kc8 {[%clk 0:00:43]} 33. f5 {[%clk 0:01:08]}  Bb3 {[%clk 0:00:37]} 34. Rd3 {[%clk 0:00:46]}  Bc2 {[%clk 0:00:35]} 35. Nd6+ {[%clk 0:00:47]}  Kb8 {[%clk 0:00:35]} 36. Rd2 {[%clk 0:00:48]}  Bb3 {[%clk 0:00:34]} 37. Ne8 {[%clk 0:00:42]}  Kc8 {[%clk 0:00:27]} 38. Nxg7 {[%clk 0:00:40]}  Nac5 {[%clk 0:00:23]} 39. Kg1 {[%clk 0:00:38]}  Bc4 {[%clk 0:00:22]} 40. Nxh5 {[%clk 0:00:37]}  Bxb5 {[%clk 0:00:20]} 41. Bxc5 {[%clk 0:00:37]}  bxc5 {[%clk 0:00:21]} 42. Nf4 {[%clk 0:00:36]}  a5 {[%clk 0:00:20]} 43. h5 {[%clk 0:00:36]}  a4 {[%clk 0:00:20]} 44. Bf7 {[%clk 0:00:33]}  Ne5 {[%clk 0:00:19]} 45. Be6+ {[%clk 0:00:31]}  Kb7 {[%clk 0:00:20]} 46. Ng6 {[%clk 0:00:28]}  Rxh5 {[%clk 0:00:18]} 47. Nxe5 {[%clk 0:00:28]}  fxe5 {[%clk 0:00:19]} 48. f6 {[%clk 0:00:29]}  Rh8 {[%clk 0:00:18]} 49. f7 {[%clk 0:00:29]}  Kc7 {[%clk 0:00:16]} 50. g4 {[%clk 0:00:29]}  c4 {[%clk 0:00:12]} 51. g5 {[%clk 0:00:29]}  c3 {[%clk 0:00:13]} 52. Rc2 {[%clk 0:00:28]}  Kd6 {[%clk 0:00:13]} 53. g6 {[%clk 0:00:27]}  Kxe6 {[%clk 0:00:11]} 54. g7 {[%clk 0:00:27]}  Rh1+ {[%clk 0:00:12]} 55. Kxh1 {[%clk 0:00:25]}  Kxf7 {[%clk 0:00:13]} 56. Rxc3 {[%clk 0:00:25]}  Kxg7 {[%clk 0:00:13]} 57. Rc5 {[%clk 0:00:26]}  Bd3 {[%clk 0:00:10]} 58. Rxe5 {[%clk 0:00:25]}  Kf6 {[%clk 0:00:10]} 59. Ra5 {[%clk 0:00:26]}  Bc2 {[%clk 0:00:10]} 60. Kh2 {[%clk 0:00:26]}  Bb3 {[%clk 0:00:10]} 61. Kg3 {[%clk 0:00:27]}  Ke6 {[%clk 0:00:11]} 62. Kf4 {[%clk 0:00:27]}  Kd6 {[%clk 0:00:11]} 63. Ke4 {[%clk 0:00:28]}  Kc6 {[%clk 0:00:12]} 64. Kd4 {[%clk 0:00:28]}  Kb6 {[%clk 0:00:12]} 65. Ra8 {[%clk 0:00:28]}  Kb5 {[%clk 0:00:12]} 66. Rb8+ {[%clk 0:00:28]}  Kc6 {[%clk 0:00:12]} 67. Kc3 {[%clk 0:00:26]}  Kc5 {[%clk 0:00:12]} 68. Rh8 {[%clk 0:00:25]}  Kd6 {[%clk 0:00:12]} 69. Rh5 {[%clk 0:00:25]}  Ke6 {[%clk 0:00:11]} 70. Kd4 {[%clk 0:00:25]}  Kf6 {[%clk 0:00:12]} 71. Ra5 {[%clk 0:00:25]}  Ke6 {[%clk 0:00:12]} 72. Ra6+ {[%clk 0:00:23]}  Kf5 {[%clk 0:00:12]} 73. Ra8 {[%clk 0:00:23]}  Ke6 {[%clk 0:00:12]} 74. Ra5 {[%clk 0:00:21]}  Kf6 {[%clk 0:00:12]} 75. Ke4 {[%clk 0:00:22]}  Bc2+ {[%clk 0:00:12]} 76. Kf4 {[%clk 0:00:21]}  Bb3 {[%clk 0:00:13]} 77. Ra6+ {[%clk 0:00:20]}  Ke7 {[%clk 0:00:14]} 78. Ke5 {[%clk 0:00:21]}  Kf7 {[%clk 0:00:14]} 79. Rb6 {[%clk 0:00:20]}  Kg7 {[%clk 0:00:13]} 80. Kf5 {[%clk 0:00:16]}  Bc2+ {[%clk 0:00:13]} 81. Ke6 {[%clk 0:00:16]}  Kg6 {[%clk 0:00:11]} 82. Rb2 {[%clk 0:00:13]}  Bb3+ {[%clk 0:00:10]} 83. Ke5 {[%clk 0:00:14]}  Kf7 {[%clk 0:00:09]} 84. Kd6 {[%clk 0:00:13]}  Kf6 {[%clk 0:00:07]} 85. Rf2+ {[%clk 0:00:13]}  Kg6 {[%clk 0:00:06]} 86. Rf3 {[%clk 0:00:12]}  Bd1 {[%clk 0:00:03]} 87. Rd3 {[%clk 0:00:12]}  Bc2 {[%clk 0:00:03]} 88. Re3 {[%clk 0:00:09]}  Kf5 {[%clk 0:00:03]} 89. Kd5 {[%clk 0:00:10]}  Bb3+ {[%clk 0:00:04]} 90. Kd4 {[%clk 0:00:10]}  Kf6 {[%clk 0:00:04]} 91. Rg3 {[%clk 0:00:07]}  Kf5 {[%clk 0:00:04]} 92. Rh3 {[%clk 0:00:06]}  Kg4 {[%clk 0:00:04]} 93. Rc3 {[%clk 0:00:05]}  Kf4 {[%clk 0:00:05]} 94. Rc5 {[%clk 0:00:04]}  a3 {[%clk 0:00:05]} 95. Ra5 {[%clk 0:00:04]}  a2 {[%clk 0:00:05]} 96. Kc3 {[%clk 0:00:05]}  Bf7 {[%clk 0:00:05]} 97. Rxa2 {[%clk 0:00:05]}  Bxa2 {[%clk 0:00:04]} 1/2-1/2


[Site "https://www.chess.com"]